[Event "10th LBHM Open 2024"]
[Site "Pune"]
[Date "2024.05.21"]
[Round "3.4"]
[White "Nitin, S.."]
[Black "Shaashvat Gupta"]
[Result "1-0"]
[ECO "B90"]
[WhiteElo "2356"]
[BlackElo "1748"]
[PlyCount "67"]
[EventDate "2024.05.21"]
[EventType "swiss"]
[EventCountry "IND"]
[TimeControl "5400+30"]

1. e4 {[%emt 0:00:33]} c5 {[%emt 0:00:38]} 2. Nf3 {[%emt 0:01:30]} d6 {[%emt 0:00:06]} 3. d4 {[%emt 0:00:05]} cxd4 {[%emt 0:00:04]} 4. Nxd4 {[%emt 0:00:05]} Nf6 {[%emt 0:00:05]} 5. Nc3 {[%emt 0:00:06]} a6 {[%emt 0:00:12]} 6. Be3 {[%emt 0:01:35]} e5 {[%emt 0:00:06]} 7. Nb3 {[%emt 0:00:05]} Be6 {[%emt 0:00:04]} 8. Qd2 {[%emt 0:00:13]} Be7 {[%emt 0:00:21]} 9. O-O-O {[%emt 0:03:09]} Ng4 {[%emt 0:00:48]} 10. g3 {[%emt 0:00:11]} Nxe3 {[%emt 0:01:26]} 11. Qxe3 {[%emt 0:00:07]} O-O {[%emt 0:01:08]} 12. f4 {[%emt 0:00:54]} Nc6 {[%emt 0:05:47]} 13. Kb1 {[%emt 0:01:00]} b5 {[%emt 0:01:05]} 14. h4 {[%emt 0:01:45]} Na5 {[%emt 0:02:17]} 15. f5 {[%emt 0:04:02]} Bc4 {[%emt 0:01:14]} 16. Nxa5 {[%emt 0:01:00]} Qxa5 {[%emt 0:00:29]} 17. Bxc4 {[%emt 0:00:16]} bxc4 {[%emt 0:00:05]} 18. Nd5 {[%emt 0:00:20]} Rfe8 {[%emt 0:09:50]} 19. Qb6 {[%emt 0:07:25]} Qxb6 {[%emt 0:01:53]} 20. Nxb6 {[%emt 0:00:13]} Rab8 {[%emt 0:00:09]} 21. Nxc4 {[%emt 0:00:25]} g6 {[%emt 0:00:26]} 22. Ne3 {[%emt 0:01:25]} Rb4 {[%emt 0:00:12]} 23. c4 {[%emt 0:00:18]} Reb8 {[%emt 0:00:17]} 24. Rh2 {[%emt 0:00:17]} Bf8 {[%emt 0:00:04]} 25. Rc2 {[%emt 0:00:30]} Rc8 {[%emt 0:00:59]} 26. g4 {[%emt 0:02:12]} h5 {[%emt 0:00:11]} 27. gxh5 {[%emt 0:02:04]} gxf5 {[%emt 0:00:04]} 28. exf5 {[%emt 0:00:15]} Kh7 {[%emt 0:00:05]} 29. b3 {[%emt 0:01:55]} Rcb8 {[%emt 0:01:39]} 30. Nd5 {[%emt 0:00:22]} R4b7 {[%emt 0:00:20]} 31. Rg2 {[%emt 0:01:39]} Bh6 {[%emt 0:00:29]} 32. Nf6+ {[%emt 0:01:32]} Kh8 {[%emt 0:00:05]} 33. Rdg1 {[%emt 0:00:19]} Rxb3+ {[%emt 0:00:33]} 34. axb3 {[%emt 0:00:07]} 1-0

[Event "10th LBHM Open 2024"]
[Site "Pune"]
[Date "2024.05.21"]
[Round "3.5"]
[White "Ratnakaran, K.."]
[Black "Shaurya Chaudhary"]
[Result "1-0"]
[ECO "B50"]
[WhiteElo "2275"]
[BlackElo "1740"]
[PlyCount "97"]
[EventDate "2024.05.21"]
[EventType "swiss"]
[EventCountry "IND"]
[TimeControl "5400+30"]

1. e4 {[%emt 0:00:03]} c5 {[%emt 0:00:08]} 2. Nf3 {[%emt 0:00:04]} d6 {[%emt 0:00:05]} 3. c3 {[%emt 0:00:03]} Nf6 {[%emt 0:00:09]} 4. h3 {[%emt 0:00:03]} e6 {[%emt 0:05:33]} 5. Bd3 {[%emt 0:00:06]} Be7 {[%emt 0:00:12]} 6. Bc2 {[%emt 0:00:02]} Nc6 {[%emt 0:06:59]} 7. O-O {[%emt 0:00:08]} Qc7 {[%emt 0:05:57]} 8. Re1 e5 {[%emt 0:06:51]} 9. a3 {[%emt 0:00:12]} Bd7 {[%emt 0:03:54]} 10. b4 {[%emt 0:00:08]} a5 {[%emt 0:00:24]} 11. b5 {[%emt 0:00:09]} Nd8 {[%emt 0:00:05]} 12. a4 {[%emt 0:00:05]} Ne6 {[%emt 0:00:29]} 13. Na3 {[%emt 0:00:09]} c4 {[%emt 0:09:06]} 14. Bb1 {[%emt 0:00:17]} Nf4 {[%emt 0:09:35]} 15. d4 {[%emt 0:08:08]} cxd3 {[%emt 0:05:35]} 16. Bxf4 {[%emt 0:00:06]} exf4 {[%emt 0:11:18]} 17. Qxd3 {[%emt 0:00:07]} Rc8 {[%emt 0:00:03]} 18. Rc1 {[%emt 0:00:49]} O-O {[%emt 0:02:01]} 19. Ba2 {[%emt 0:03:11]} d5 {[%emt 0:07:16]} 20. Bxd5 {[%emt 0:01:23]} Nxd5 {[%emt 0:00:47]} 21. exd5 {[%emt 0:00:26]} Bf6 {[%emt 0:00:44]} 22. Ra2 {[%emt 0:00:53]} Qc5 {[%emt 0:03:18]} 23. c4 {[%emt 0:01:50]} g6 {[%emt 0:03:58]} 24. Qd2 {[%emt 0:02:29]} Qb4 {[%emt 0:01:40]} 25. Qxf4 {[%emt 0:00:27]} Bf5 {[%emt 0:00:18]} 26. g4 {[%emt 0:11:53]} Qb3 {[%emt 0:09:55]} 27. Re2 {[%emt 0:00:12]} Bb2 {[%emt 0:00:11]} 28. Rxb2 {[%emt 0:02:29]} Qxb2 {[%emt 0:00:02]} 29. gxf5 {[%emt 0:00:09]} Qxa3 {[%emt 0:00:11]} 30. f6 {[%emt 0:00:06]} Rfd8 {[%emt 0:01:20]} 31. Re1 {[%emt 0:01:03]} Qc3 {[%emt 0:03:02]} 32. Re4 {[%emt 0:01:35]} h6 {[%emt 0:01:38]} 33. Ne5 {[%emt 0:01:21]} Rd6 {[%emt 0:01:47]} 34. Ng4 {[%emt 0:00:38]} h5 {[%emt 0:01:57]} 35. Nh6+ {[%emt 0:03:24]} Kh7 {[%emt 0:00:08]} 36. Nxf7 {[%emt 0:01:54]} Rxf6 {[%emt 0:00:32]} 37. Qh6+ {[%emt 0:00:08]} Kg8 {[%emt 0:00:16]} 38. Qh8+ {[%emt 0:02:44]} Kxf7 {[%emt 0:00:02]} 39. Qxc8 {[%emt 0:00:05]} Qc1+ {[%emt 0:01:38]} 40. Kg2 {[%emt 0:00:16]} Qg5+ {[%emt 0:00:08]} 41. Kf1 {[%emt 0:00:04]} Qc1+ {[%emt 0:01:10]} 42. Re1 {[%emt 0:00:13]} Rxf2+ {[%emt 0:00:13]} 43. Kxf2 {[%emt 0:00:06]} Qd2+ {[%emt 0:00:10]} 44. Re2 {[%emt 0:00:55]} Qf4+ {[%emt 0:00:55]} 45. Kg2 {[%emt 0:00:09]} Qg5+ {[%emt 0:00:15]} 46. Kf3 {[%emt 0:00:05]} Qf6+ {[%emt 0:00:12]} 47. Ke4 {[%emt 0:00:07]} Qh4+ {[%emt 0:00:57]} 48. Kd3 {[%emt 0:00:06]} Qxh3+ {[%emt 0:00:16]} 49. Qxh3 {[%emt 0:00:07]} 1-0

[Event "10th LBHM Open 2024"]
[Site "Pune"]
[Date "2024.05.21"]
[Round "3.6"]
[White "Nirvan Bhamidi"]
[Black "Roy Chowdhury, Saptarshi"]
[Result "1-0"]
[ECO "B00"]
[WhiteElo "1741"]
[BlackElo "2249"]
[PlyCount "97"]
[EventDate "2024.05.21"]
[EventType "swiss"]
[EventCountry "IND"]
[TimeControl "5400+30"]

1. e4 {[%emt 0:00:04]} b6 {[%emt 0:02:36]} 2. d4 {[%emt 0:00:07]} Bb7 {[%emt 0:00:03]} 3. Bd3 {[%emt 0:00:06]} e6 {[%emt 0:00:04]} 4. Nc3 {[%emt 0:00:44]} d6 {[%emt 0:00:29]} 5. f4 {[%emt 0:01:19]} Nd7 {[%emt 0:00:19]} 6. Nf3 {[%emt 0:00:09]} c5 {[%emt 0:04:45]} 7. Qe2 {[%emt 0:05:33]} cxd4 {[%emt 0:03:12]} 8. Nxd4 {[%emt 0:00:09]} a6 {[%emt 1:23:02]} 9. Nb3 {[%emt 0:06:01]} Qc7 {[%emt 0:00:00]} 10. O-O {[%emt 0:07:19]} Ngf6 {[%emt 0:00:00]} 11. Bd2 {[%emt 0:05:41]} Be7 {[%emt 0:00:00]} 12. Rae1 {[%emt 0:02:28]} e5 {[%emt 0:00:00]} 13. Qf3 {[%emt 0:10:58]} O-O {[%emt 0:00:00]} 14. Kh1 {[%emt 0:01:49]} Rad8 {[%emt 0:00:00]} 15. Nd5 {[%emt 0:06:23]} Nxd5 {[%emt 0:00:00]} 16. exd5 {[%emt 0:00:09]} Nf6 {[%emt 0:00:00]} 17. fxe5 {[%emt 0:04:47]} dxe5 {[%emt 0:00:00]} 18. c4 {[%emt 0:03:11]} e4 {[%emt 0:00:00]} 19. Bxe4 {[%emt 0:08:15]} Nxe4 {[%emt 0:00:00]} 20. Qxe4 {[%emt 0:01:07]} Bd6 {[%emt 0:00:00]} 21. Bc3 {[%emt 0:11:05]} f6 {[%emt 0:00:00]} 22. h3 {[%emt 0:04:50]} Rc8 {[%emt 0:00:00]} 23. Nd2 {[%emt 0:00:29]} b5 {[%emt 0:00:00]} 24. Qe6+ {[%emt 0:00:17]} Kh8 {[%emt 0:00:00]} 25. Ne4 {[%emt 0:00:11]} Bg3 {[%emt 0:00:31]} 26. Re3 {[%emt 0:07:21]} Rce8 {[%emt 0:00:24]} 27. Qf5 {[%emt 0:00:10]} Be5 {[%emt 0:02:38]} 28. d6 {[%emt 0:05:09]} Bxe4 {[%emt 0:04:06]} 29. dxc7 {[%emt 0:01:50]} Bxf5 {[%emt 0:00:09]} 30. Rxf5 {[%emt 0:00:35]} Bxc7 {[%emt 0:00:55]} 31. Rxe8 {[%emt 0:00:07]} Rxe8 {[%emt 0:00:03]} 32. cxb5 {[%emt 0:00:07]} Rd8 {[%emt 0:00:55]} 33. g4 {[%emt 0:00:29]} axb5 {[%emt 0:01:23]} 34. Rxb5 {[%emt 0:00:07]} Kg8 {[%emt 0:00:01]} 35. Rb7 {[%emt 0:00:09]} Bf4 {[%emt 0:00:09]} 36. a4 {[%emt 0:00:34]} Rd3 {[%emt 0:01:20]} 37. Kg2 {[%emt 0:00:10]} Rg3+ {[%emt 0:00:07]} 38. Kf2 {[%emt 0:00:06]} Rxh3 {[%emt 0:00:05]} 39. a5 {[%emt 0:00:58]} Be3+ {[%emt 0:00:09]} 40. Ke2 {[%emt 0:00:06]} Bc5 {[%emt 0:01:08]} 41. Rc7 {[%emt 0:01:12]} Bg1 {[%emt 0:00:14]} 42. b4 {[%emt 0:01:52]} h5 {[%emt 0:00:13]} 43. gxh5 {[%emt 0:02:03]} Rxh5 {[%emt 0:00:06]} 44. a6 {[%emt 0:00:06]} Rh2+ {[%emt 0:00:33]} 45. Kf1 {[%emt 0:00:11]} Be3 {[%emt 0:00:32]} 46. a7 {[%emt 0:00:05]} Bxa7 {[%emt 0:00:35]} 47. Rxa7 {[%emt 0:00:05]} Rc2 {[%emt 0:00:06]} 48. Rc7 {[%emt 0:01:27]} g5 {[%emt 0:00:27]} 49. Be5 {[%emt 0:00:35]} 1-0

[Event "10th LBHM Open 2024"]
[Site "Pune"]
[Date "2024.05.21"]
[Round "3.7"]
[White "Dere Pushkar"]
[Black "Vismay Sachar"]
[Result "1-0"]
[ECO "C54"]
[WhiteElo "2209"]
[BlackElo "1732"]
[PlyCount "61"]
[EventDate "2024.05.21"]
[EventType "swiss"]
[EventCountry "IND"]
[TimeControl "5400+30"]

1. e4 {[%emt 0:05:37]} e5 {[%emt 0:03:28]} 2. Nf3 {[%emt 0:00:47]} Nc6 {[%emt 0:00:09]} 3. Bc4 {[%emt 0:00:08]} Bc5 {[%emt 0:00:10]} 4. c3 {[%emt 0:00:32]} Nf6 {[%emt 0:00:06]} 5. d3 {[%emt 0:01:34]} d6 {[%emt 0:00:35]} 6. Bg5 {[%emt 0:00:25]} h6 {[%emt 0:00:24]} 7. Bh4 {[%emt 0:00:05]} g5 {[%emt 0:00:48]} 8. Bg3 {[%emt 0:00:14]} Qe7 {[%emt 0:03:33]} 9. a4 {[%emt 0:03:21]} a5 {[%emt 0:06:09]} 10. Nbd2 {[%emt 0:01:09]} Be6 {[%emt 0:00:49]} 11. Bb5 {[%emt 0:01:45]} Bd7 {[%emt 0:02:22]} 12. O-O {[%emt 0:01:27]} g4 {[%emt 0:07:08]} 13. Bh4 {[%emt 0:08:58]} Rg8 {[%emt 0:02:01]} 14. Ne1 {[%emt 0:03:22]} Rg6 {[%emt 0:01:05]} 15. Nc2 {[%emt 0:01:21]} Ba7 {[%emt 0:04:34]} 16. Ne3 {[%emt 0:02:24]} h5 {[%emt 0:05:43]} 17. Nd5 {[%emt 0:00:26]} Nxd5 {[%emt 0:00:20]} 18. Bxe7 {[%emt 0:00:13]} Ndxe7 {[%emt 0:00:05]} 19. Kh1 {[%emt 0:02:49]} h4 {[%emt 0:00:52]} 20. f4 {[%emt 0:01:44]} exf4 {[%emt 0:04:52]} 21. Rxf4 {[%emt 0:01:11]} Be3 {[%emt 0:00:15]} 22. Rf1 {[%emt 0:00:58]} g3 {[%emt 0:00:20]} 23. Nc4 {[%emt 0:01:39]} Bh6 {[%emt 0:01:34]} 24. Qh5 {[%emt 0:08:35]} h3 {[%emt 0:03:22]} 25. hxg3 {[%emt 0:01:12]} Rxg3 {[%emt 0:04:04]} 26. Qxf7+ {[%emt 0:04:09]} Kd8 {[%emt 0:00:09]} 27. Rf2 {[%emt 0:01:14]} Rxd3 {[%emt 0:49:03]} 28. Qh7 {[%emt 0:03:18]} hxg2+ {[%emt 0:00:00]} 29. Kxg2 {[%emt 0:00:31]} Bg5 {[%emt 0:00:00]} 30. Rf8+ {[%emt 0:01:10]} Be8 {[%emt 0:00:00]} 31. Qh5 {[%emt 0:00:42]} 1-0

[Event "10th LBHM Open 2024"]
[Site "Pune"]
[Date "2024.05.21"]
[Round "3.8"]
[White "Mokshith Pasupulety"]
[Black "Md Imran"]
[Result "0-1"]
[ECO "D02"]
[WhiteElo "1740"]
[BlackElo "2184"]
[PlyCount "94"]
[EventDate "2024.05.21"]
[EventType "swiss"]
[EventCountry "IND"]
[TimeControl "5400+30"]

1. Nf3 {[%emt 1:31:00]} Nf6 {[%emt 0:01:11]} 2. g3 {[%emt 0:00:00]} d5 {[%emt 0:05:07]} 3. Bg2 {[%emt 0:00:00]} Bg4 {[%emt 0:00:02]} 4. O-O Nbd7 5. d4 {[%emt 0:00:00]} e6 {[%emt 0:05:48]} 6. h3 {[%emt 0:00:00]} Bh5 7. Ne5 {[%emt 0:00:00]} Nxe5 {[%emt 0:05:37]} 8. dxe5 {[%emt 0:00:00]} Nd7 {[%emt 0:00:07]} 9. f4 {[%emt 0:00:00]} Bc5+ {[%emt 0:00:13]} 10. Kh2 {[%emt 0:00:00]} O-O {[%emt 0:06:58]} 11. g4 {[%emt 0:00:00]} Bg6 {[%emt 0:00:02]} 12. f5 {[%emt 0:00:00]} exf5 {[%emt 0:03:53]} 13. gxf5 {[%emt 0:00:00]} Bh5 {[%emt 0:00:01]} 14. Qxd5 {[%emt 0:00:00]} c6 {[%emt 0:04:05]} 15. Qc4 {[%emt 0:00:00]} Qe7 {[%emt 0:00:05]} 16. Nc3 {[%emt 0:00:00]} Nxe5 {[%emt 0:01:23]} 17. Qe4 {[%emt 0:00:00]} Rfe8 {[%emt 0:00:17]} 18. Bf4 {[%emt 0:00:00]} Ng4+ {[%emt 0:01:57]} 19. Kg3 {[%emt 0:00:00]} Ne3 {[%emt 0:01:32]} 20. Bxe3 {[%emt 0:00:00]} Qd6+ {[%emt 0:01:43]} 21. Bf4 {[%emt 0:00:00]} Rxe4 {[%emt 0:02:50]} 22. Bxe4 {[%emt 0:00:00]} Qe7 {[%emt 0:01:44]} 23. Bd3 {[%emt 0:00:00]} Bd6 {[%emt 0:00:08]} 24. Ne4 {[%emt 0:00:00]} Bxf4+ {[%emt 0:00:05]} 25. Rxf4 {[%emt 0:00:00]} Qe5 {[%emt 0:00:25]} 26. c3 {[%emt 0:00:00]} g5 {[%emt 0:03:09]} 27. Nxg5 {[%emt 0:00:00]} Qe3+ {[%emt 0:01:08]} 28. Nf3 {[%emt 0:00:00]} Kh8 {[%emt 0:00:03]} 29. Rg4 {[%emt 0:00:00]} Bxg4 {[%emt 0:00:33]} 30. hxg4 {[%emt 0:00:00]} Rg8 {[%emt 0:01:13]} 31. Rh1 {[%emt 0:00:00]} f6 {[%emt 0:00:06]} 32. a4 {[%emt 0:00:51]} Rg5 {[%emt 0:00:33]} 33. Rh2 {[%emt 0:02:20]} Kg7 {[%emt 0:00:27]} 34. Rh4 {[%emt 0:02:22]} h5 {[%emt 0:00:08]} 35. Rxh5 {[%emt 0:00:29]} Rxh5 {[%emt 0:00:01]} 36. gxh5 {[%emt 0:00:01]} Kh6 {[%emt 0:00:05]} 37. b4 {[%emt 0:00:31]} Kxh5 {[%emt 0:00:06]} 38. c4 {[%emt 0:01:47]} Qe7 {[%emt 0:00:26]} 39. c5 {[%emt 0:01:01]} a5 {[%emt 0:00:17]} 40. bxa5 {[%emt 0:00:39]} Qc7+ {[%emt 0:00:02]} 41. Kg2 {[%emt 0:00:51]} Qxa5 {[%emt 0:00:02]} 42. Nd4 {[%emt 0:00:23]} Qxc5 {[%emt 0:00:05]} 43. Ne6 {[%emt 0:00:13]} Qa5 {[%emt 0:58:23]} 44. Kf3 {[%emt 0:01:27]} Qxa4 {[%emt 0:00:00]} 45. Be4 {[%emt 0:00:40]} Qb3+ {[%emt 0:00:00]} 46. Kf4 {[%emt 0:00:20]} Kh4 {[%emt 0:00:00]} 47. Bf3 {[%emt 0:00:27]} Qc3 {[%emt 0:00:00]} 0-1

[Event "10th LBHM Open 2024"]
[Site "Pune"]
[Date "2024.05.21"]
[Round "3.9"]
[White "Koustuv Dash"]
[Black "Nishant T.R."]
[Result "1-0"]
[ECO "A57"]
[WhiteElo "2133"]
[BlackElo "1730"]
[PlyCount "93"]
[EventDate "2024.05.21"]
[EventType "swiss"]
[EventCountry "IND"]
[TimeControl "5400+30"]

1. d4 {[%emt 0:00:09]} Nf6 {[%emt 0:00:05]} 2. c4 {[%emt 0:00:11]} c5 {[%emt 0:00:09]} 3. d5 {[%emt 0:00:13]} b5 {[%emt 0:00:05]} 4. Qc2 {[%emt 0:00:36]} d6 {[%emt 0:01:53]} 5. e4 {[%emt 0:00:12]} bxc4 {[%emt 0:01:36]} 6. Bxc4 {[%emt 0:00:29]} g6 {[%emt 0:00:18]} 7. Nc3 {[%emt 0:00:37]} Bg7 {[%emt 0:00:11]} 8. Nf3 {[%emt 0:00:19]} Nbd7 {[%emt 0:00:04]} 9. O-O {[%emt 0:00:10]} O-O {[%emt 0:00:24]} 10. h3 {[%emt 0:00:44]} Nb6 {[%emt 0:02:23]} 11. Be2 {[%emt 0:00:40]} a5 {[%emt 0:00:16]} 12. a4 {[%emt 0:03:22]} Ne8 13. Bg5 {[%emt 0:08:54]} Nc7 {[%emt 0:01:53]} 14. Rad1 {[%emt 0:02:01]} f6 {[%emt 1:28:13]} 15. Be3 {[%emt 0:01:05]} Ba6 {[%emt 0:00:00]} 16. h4 {[%emt 0:10:21]} Qe8 {[%emt 0:00:00]} 17. b3 {[%emt 0:07:27]} f5 {[%emt 0:00:00]} 18. Bxa6 {[%emt 0:07:38]} Nxa6 {[%emt 0:00:00]} 19. Ng5 {[%emt 0:03:08]} Nb4 {[%emt 0:00:00]} 20. Qc1 {[%emt 0:02:18]} f4 {[%emt 0:00:00]} 21. Bd2 {[%emt 0:02:10]} Nd3 {[%emt 0:00:00]} 22. Qc2 {[%emt 0:00:28]} Ne5 {[%emt 0:00:00]} 23. f3 {[%emt 0:03:01]} Qd7 {[%emt 0:00:00]} 24. Ne6 {[%emt 0:01:05]} Bh6 {[%emt 0:00:00]} 25. Nxf8 {[%emt 0:02:49]} Rxf8 {[%emt 0:00:00]} 26. Ne2 {[%emt 0:00:09]} c4 {[%emt 0:00:00]} 27. Bxa5 {[%emt 0:05:32]} cxb3 {[%emt 0:00:00]} 28. Qxb3 {[%emt 0:00:16]} Nxa4 {[%emt 0:00:00]} 29. Nd4 {[%emt 0:06:48]} Nc5 {[%emt 0:00:00]} 30. Qb5 {[%emt 0:00:57]} Qxb5 {[%emt 0:00:00]} 31. Nxb5 {[%emt 0:00:03]} Nc4 {[%emt 0:00:00]} 32. Bd2 {[%emt 0:03:15]} Nb3 {[%emt 0:00:00]} 33. Bc1 {[%emt 0:00:34]} Bg7 {[%emt 0:00:00]} 34. Na3 {[%emt 0:08:25]} Ne3 {[%emt 0:00:00]} 35. Bxe3 {[%emt 0:00:54]} fxe3 {[%emt 0:00:00]} 36. Rfe1 {[%emt 0:05:45]} Bd4 {[%emt 0:00:00]} 37. Nc2 {[%emt 0:04:16]} Bc5 {[%emt 0:00:00]} 38. Nxe3 {[%emt 0:02:17]} Nd4 {[%emt 0:00:00]} 39. Kh2 {[%emt 0:02:13]} Bb4 {[%emt 0:00:00]} 40. Rf1 {[%emt 0:00:25]} Bc5 {[%emt 0:00:00]} 41. Nc4 {[%emt 0:01:11]} Rf4 {[%emt 0:00:00]} 42. Kg3 {[%emt 0:02:12]} Ne2+ {[%emt 0:00:00]} 43. Kh3 {[%emt 0:00:01]} Nc3 {[%emt 0:00:00]} 44. Rc1 {[%emt 0:01:03]} Ne2 {[%emt 0:00:00]} 45. Rb1 {[%emt 0:00:43]} Nd4 {[%emt 0:00:00]} 46. Nb2 {[%emt 0:02:00]} Rf7 {[%emt 0:00:00]} 47. Nd3 {[%emt 0:00:06]} 1-0

[Event "10th LBHM Open 2024"]
[Site "Pune"]
[Date "2024.05.21"]
[Round "3.10"]
[White "Lalitaditaayyanar Boominathan"]
[Black "Sharnarthi Viresh"]
[Result "1-0"]
[ECO "A34"]
[WhiteElo "1736"]
[BlackElo "2078"]
[PlyCount "111"]
[EventDate "2024.05.21"]
[EventType "swiss"]
[EventCountry "IND"]
[TimeControl "5400+30"]

1. Nf3 {[%emt 0:02:15]} Nf6 {[%emt 0:10:04]} 2. g3 {[%emt 0:00:10]} c5 {[%emt 0:00:06]} 3. c4 {[%emt 0:01:29]} d5 {[%emt 0:00:05]} 4. Bg2 {[%emt 0:03:23]} Nc6 {[%emt 0:00:08]} 5. cxd5 {[%emt 0:01:56]} Nxd5 {[%emt 0:00:02]} 6. Nc3 {[%emt 0:00:22]} e5 {[%emt 0:06:35]} 7. Nxe5 {[%emt 0:04:47]} Nxc3 {[%emt 0:00:03]} 8. Nxc6 {[%emt 0:00:19]} Nxd1 {[%emt 0:00:11]} 9. Nxd8 {[%emt 0:00:06]} Nxf2 {[%emt 0:00:05]} 10. Nxf7 {[%emt 0:12:17]} Nxh1 {[%emt 0:00:06]} 11. Nxh8 {[%emt 0:00:02]} Nxg3 {[%emt 0:00:07]} 12. hxg3 {[%emt 0:00:04]} Bd6 {[%emt 0:02:25]} 13. Kf2 {[%emt 0:09:02]} Be6 {[%emt 0:01:12]} 14. Bxb7 {[%emt 0:01:51]} Rb8 {[%emt 0:00:03]} 15. Bf3 {[%emt 0:00:07]} Be5 {[%emt 0:34:47]} 16. d3 {[%emt 0:05:17]} Kd7 {[%emt 0:04:07]} 17. Ng6 {[%emt 0:00:38]} hxg6 {[%emt 0:00:08]} 18. Rb1 {[%emt 0:00:31]} g5 {[%emt 0:00:50]} 19. b3 {[%emt 0:01:22]} c4 {[%emt 0:02:18]} 20. dxc4 {[%emt 0:05:37]} g4 {[%emt 0:03:43]} 21. Bd5 {[%emt 0:02:34]} Rf8+ {[%emt 0:03:25]} 22. Kg2 {[%emt 0:01:16]} Bd4 {[%emt 0:01:59]} 23. e3 {[%emt 0:00:48]} Bxd5+ {[%emt 0:01:07]} 24. cxd5 {[%emt 0:00:16]} Bb6 {[%emt 0:00:06]} 25. Rb2 {[%emt 0:08:33]} Rc8 {[%emt 0:10:10]} 26. Bd2 {[%emt 0:00:21]} Kd6 {[%emt 0:00:30]} 27. e4 {[%emt 0:02:30]} Ke5 {[%emt 0:00:06]} 28. Bf4+ {[%emt 0:00:04]} Kxe4 {[%emt 0:00:04]} 29. d6 {[%emt 0:00:08]} Kf5 {[%emt 0:14:59]} 30. Re2 {[%emt 0:02:56]} Bd4 {[%emt 0:01:19]} 31. Rd2 {[%emt 0:00:58]} Bb6 {[%emt 0:02:43]} 32. a4 {[%emt 0:00:55]} Bd8 {[%emt 0:00:20]} 33. Re2 {[%emt 0:02:07]} Bf6 {[%emt 0:01:04]} 34. Be3 {[%emt 0:01:19]} Ra8 {[%emt 0:01:46]} 35. Bc5 {[%emt 0:00:41]} a6 {[%emt 0:00:38]} 36. Bb6 {[%emt 0:00:27]} Rb8 {[%emt 0:00:04]} 37. a5 {[%emt 0:00:26]} Rb7 {[%emt 0:00:01]} 38. Re8 {[%emt 0:01:54]} Rd7 {[%emt 0:00:19]} 39. Bc7 {[%emt 0:00:25]} Rf7 {[%emt 0:01:06]} 40. b4 {[%emt 0:01:09]} Bc3 {[%emt 0:00:17]} 41. Re7 {[%emt 0:00:24]} Rf8 {[%emt 0:01:18]} 42. d7 {[%emt 0:00:45]} Bxb4 {[%emt 0:00:21]} 43. Re8 {[%emt 0:01:12]} Be7 {[%emt 0:00:12]} 44. Rxf8+ {[%emt 0:00:09]} Ke6 {[%emt 0:00:54]} 45. d8=Q {[%emt 0:00:02]} Bxd8 {[%emt 0:00:07]} 46. Rxd8 {[%emt 0:00:07]} g5 {[%emt 0:00:05]} 47. Kf2 {[%emt 0:00:24]} Kf6 {[%emt 0:00:08]} 48. Ke3 {[%emt 0:00:05]} Ke6 {[%emt 0:00:07]} 49. Ke4 {[%emt 0:00:07]} Kf7 {[%emt 0:00:04]} 50. Rd6 {[%emt 0:00:04]} Ke7 {[%emt 0:00:04]} 51. Kf5 {[%emt 0:00:06]} Kf7 {[%emt 0:00:04]} 52. Rd7+ {[%emt 0:00:06]} Ke8 {[%emt 0:00:04]} 53. Ke6 {[%emt 0:00:09]} Kf8 {[%emt 0:00:03]} 54. Be5 {[%emt 0:00:31]} Kg8 {[%emt 0:00:05]} 55. Rc7 {[%emt 0:00:09]} Kf8 {[%emt 0:00:05]} 56. Rc8# {[%emt 0:00:03]} 1-0

[Event "10th LBHM Open 2024"]
[Site "Pune"]
[Date "2024.05.21"]
[Round "4.1"]
[White "Ghosh, Diptayan"]
[Black "Surada Yashaswi Satya Gangadha"]
[Result "1-0"]
[ECO "D34"]
[WhiteElo "2564"]
[BlackElo "1844"]
[PlyCount "109"]
[EventDate "2024.05.21"]
[EventType "swiss"]
[EventCountry "IND"]
[TimeControl "5400+30"]

1. Nf3 {[%emt 0:00:35]} d5 {[%emt 0:00:27]} 2. g3 {[%emt 0:00:19]} Nf6 {[%emt 0:00:19]} 3. Bg2 {[%emt 0:00:03]} c5 {[%emt 0:00:07]} 4. O-O {[%emt 0:00:33]} e6 {[%emt 0:00:06]} 5. c4 {[%emt 0:00:24]} Be7 {[%emt 0:00:21]} 6. cxd5 {[%emt 0:00:53]} exd5 {[%emt 0:00:07]} 7. d4 {[%emt 0:00:03]} cxd4 {[%emt 0:10:24]} 8. Nxd4 {[%emt 0:00:17]} Nc6 {[%emt 0:00:35]} 9. Nc3 {[%emt 0:01:25]} O-O {[%emt 0:02:18]} 10. Be3 {[%emt 0:02:29]} Be6 {[%emt 0:15:52]} 11. Rc1 {[%emt 0:10:19]} Qd7 {[%emt 0:20:06]} 12. Qa4 {[%emt 0:03:58]} Bh3 {[%emt 0:13:42]} 13. Rfd1 {[%emt 0:02:36]} Bxg2 {[%emt 0:00:21]} 14. Kxg2 {[%emt 0:00:04]} Rfd8 {[%emt 0:01:52]} 15. Nf3 {[%emt 0:03:10]} Rac8 {[%emt 0:13:26]} 16. a3 {[%emt 0:04:51]} Qe6 {[%emt 0:02:25]} 17. Bd4 {[%emt 0:24:45]} Ne4 {[%emt 0:02:09]} 18. Qb5 {[%emt 0:01:06]} Rd7 {[%emt 0:02:58]} 19. e3 {[%emt 0:01:21]} Rcd8 {[%emt 0:00:40]} 20. Qe2 {[%emt 0:01:06]} Bf6 {[%emt 0:01:31]} 21. Nb5 {[%emt 0:01:18]} Nxd4 {[%emt 0:01:23]} 22. Nbxd4 {[%emt 0:00:16]} Qg4 {[%emt 0:00:52]} 23. Rc2 {[%emt 0:00:29]} h5 {[%emt 0:00:48]} 24. Rdc1 {[%emt 0:00:52]} Nd6 {[%emt 0:02:29]} 25. Kg1 {[%emt 0:04:39]} Qe4 {[%emt 0:01:44]} 26. Rc7 {[%emt 0:04:00]} g6 {[%emt 0:02:21]} 27. Rxd7 {[%emt 0:00:48]} Rxd7 {[%emt 0:00:02]} 28. h4 {[%emt 0:03:47]} Qg4 {[%emt 0:00:26]} 29. b3 {[%emt 0:01:16]} a6 {[%emt 0:00:19]} 30. a4 {[%emt 0:00:45]} Re7 {[%emt 0:00:25]} 31. Qd3 {[%emt 0:00:40]} Qh3 {[%emt 0:01:21]} 32. Ne2 {[%emt 0:01:12]} Qf5 {[%emt 0:00:50]} 33. Qxf5 {[%emt 0:00:42]} Nxf5 {[%emt 0:00:10]} 34. Nf4 {[%emt 0:03:37]} Rd7 {[%emt 0:02:16]} 35. Rd1 {[%emt 0:00:24]} d4 {[%emt 0:00:31]} 36. Ne2 {[%emt 0:00:51]} d3 {[%emt 0:01:24]} 37. Nf4 {[%emt 0:00:05]} d2 {[%emt 0:00:57]} 38. Rxd2 {[%emt 0:00:22]} Rxd2 {[%emt 0:00:01]} 39. Nxd2 {[%emt 0:00:01]} Be5 {[%emt 0:00:30]} 40. Nd5 {[%emt 0:00:31]} Nd6 {[%emt 0:00:18]} 41. Kg2 {[%emt 0:00:50]} Kf8 {[%emt 0:00:14]} 42. Kf3 {[%emt 0:00:18]} Ke8 {[%emt 0:01:31]} 43. Nb6 {[%emt 0:02:22]} Nf5 {[%emt 0:00:44]} 44. Ke4 {[%emt 0:00:31]} Bc7 {[%emt 0:00:21]} 45. Nd5 {[%emt 0:00:05]} Bd8 {[%emt 0:00:45]} 46. Nf3 {[%emt 0:00:13]} f6 {[%emt 0:00:14]} 47. Kd3 {[%emt 0:01:31]} g5 {[%emt 0:00:28]} 48. e4 {[%emt 0:00:44]} Nd6 {[%emt 0:00:24]} 49. hxg5 {[%emt 0:01:01]} fxg5 {[%emt 0:00:09]} 50. e5 {[%emt 0:00:04]} Nf5 {[%emt 0:00:33]} 51. Ke4 {[%emt 0:00:11]} Nh6 {[%emt 0:00:16]} 52. Nf6+ {[%emt 0:03:25]} Bxf6 {[%emt 0:01:12]} 53. exf6 {[%emt 0:00:01]} Kf7 {[%emt 0:00:02]} 54. Nxg5+ {[%emt 0:00:08]} Kxf6 {[%emt 0:00:06]} 55. Kf4 {[%emt 0:00:02]} 1-0